[Event "Early-Titled-Tuesday-Blitz-May-07-2024"]
[Site "Chess.com"]
[Date "2024.05.07"]
[Round "4"]
[White "LoaySameer"]
[Black "N_I_Chess"]
[Result "1-0"]
[WhiteElo "2519"]
[BlackElo "2333"]
[TimeControl "180+1"]
[EndTime "8:42:20 PDT"]
[Termination "LoaySameer won by resignation"]

1. Nf3 {[%clk 0:03:00.9]} 1... Nf6 {[%clk 0:02:49.4]} 2. g3 {[%clk 0:03:00.9]}
2... d5 {[%clk 0:02:47.5]} 3. Bg2 {[%clk 0:03:00.9]} 3... Bf5 {[%clk 0:02:47.4]}
4. O-O {[%clk 0:03:00.8]} 4... e6 {[%clk 0:02:47.3]} 5. d3 {[%clk 0:03:00.6]}
5... Bd6 {[%clk 0:02:43.4]} 6. Nbd2 {[%clk 0:02:56.4]} 6... h6 {[%clk
0:02:38.6]} 7. b3 {[%clk 0:02:56.7]} 7... O-O {[%clk 0:02:38.5]} 8. Bb2 {[%clk
0:02:56.8]} 8... Nbd7 {[%clk 0:02:39.2]} 9. Re1 {[%clk 0:02:56.9]} 9... Bh7
{[%clk 0:02:29.6]} 10. e4 {[%clk 0:02:56.7]} 10... dxe4 {[%clk 0:02:26]} 11.
dxe4 {[%clk 0:02:57.6]} 11... e5 {[%clk 0:02:12.1]} 12. Nh4 {[%clk 0:02:57.9]}
12... Qe7 {[%clk 0:02:02.9]} 13. Nf5 {[%clk 0:02:57.5]} 13... Bxf5 {[%clk
0:02:02.7]} 14. exf5 {[%clk 0:02:58.4]} 14... c6 {[%clk 0:02:00.7]} 15. Ne4
{[%clk 0:02:58.6]} 15... Nxe4 {[%clk 0:01:49]} 16. Bxe4 {[%clk 0:02:58.6]} 16...
Rad8 {[%clk 0:01:35.7]} 17. Qe2 {[%clk 0:02:58.1]} 17... Nf6 {[%clk 0:01:30]}
18. Bg2 {[%clk 0:02:57.9]} 18... Rfe8 {[%clk 0:01:22.2]} 19. Qc4 {[%clk
0:02:44.6]} 19... e4 {[%clk 0:00:23.7]} 20. Rad1 {[%clk 0:02:05.9]} 20... Be5
{[%clk 0:00:24]} 21. Bc1 {[%clk 0:02:02]} 21... Rxd1 {[%clk 0:00:17.8]} 22. Rxd1
{[%clk 0:02:02.3]} 22... Bc7 {[%clk 0:00:10.1]} 23. Re1 {[%clk 0:01:58.7]} 23...
Qe5 {[%clk 0:00:08.4]} 24. Bf4 {[%clk 0:01:58.2]} 24... Qe7 {[%clk 0:00:07.9]}
25. Bxc7 {[%clk 0:01:48.7]} 25... Qxc7 {[%clk 0:00:08.8]} 26. Bxe4 {[%clk
0:01:49.3]} 26... Qe5 {[%clk 0:00:08.5]} 27. f3 {[%clk 0:01:49.5]} 27... Qa5
{[%clk 0:00:07.3]} 28. b4 {[%clk 0:01:44.5]} 28... Qb6+ {[%clk 0:00:06.9]} 29.
Kg2 {[%clk 0:01:44.4]} 29... Nd5 {[%clk 0:00:06.5]} 30. Qc5 {[%clk 0:01:24.2]}
30... Qxb4 {[%clk 0:00:03.1]} 31. Qxb4 {[%clk 0:01:24.4]} 31... Nxb4 {[%clk
0:00:04]} 32. Rb1 {[%clk 0:01:25.1]} 32... Nxa2 {[%clk 0:00:04.2]} 33. Rxb7
{[%clk 0:01:25.5]} 33... Nc3 {[%clk 0:00:04.4]} 34. Bd3 {[%clk 0:01:22.4]} 34...
Ra8 {[%clk 0:00:02.1]} 35. Ba6 {[%clk 0:01:19.6]} 35... Nd5 {[%clk 0:00:01.5]}
36. c4 {[%clk 0:01:16.7]} 36... Ne3+ {[%clk 0:00:01.6]} 37. Kf2 {[%clk
0:01:16.7]} 37... Nxf5 {[%clk 0:00:02.5]} 38. Rc7 {[%clk 0:01:17.2]} 38... Nd4
{[%clk 0:00:02.4]} 39. Ke3 {[%clk 0:01:15.1]} 39... c5 {[%clk 0:00:02.5]} 40.
Rxc5 {[%clk 0:01:13.5]} 40... Ne6 {[%clk 0:00:02.7]} 41. Ra5 {[%clk 0:01:12.8]}
41... Kf8 {[%clk 0:00:02.8]} 42. Bb7 {[%clk 0:01:11.7]} 42... Rb8 {[%clk
0:00:02.5]} 43. Rxa7 {[%clk 0:01:10.5]} 43... Nc5 {[%clk 0:00:03.2]} 44. Bd5
{[%clk 0:01:10.9]} 44... Ne6 {[%clk 0:00:01.4]} 45. Bxe6 {[%clk 0:01:10.4]}
45... fxe6 {[%clk 0:00:02.3]} 46. Kd4 {[%clk 0:01:10.7]} 46... Rb3 {[%clk
0:00:02.2]} 47. c5 {[%clk 0:01:10.1]} 47... Rxf3 {[%clk 0:00:02.2]} 48. c6
{[%clk 0:01:10.7]} 48... Rf2 {[%clk 0:00:02.4]} 49. Kd3 {[%clk 0:01:10.3]} 49...
Rf1 {[%clk 0:00:02.3]} 50. Kd2 {[%clk 0:01:10.5]} 50... Rf5 {[%clk 0:00:02.1]}
51. c7 {[%clk 0:01:07.4]} 51... Rc5 {[%clk 0:00:02.5]} 52. Ra8+ {[%clk
0:01:07.8]} 52... Ke7 {[%clk 0:00:02.6]} 53. c8=Q {[%clk 0:01:08.7]} 53... Rxc8
{[%clk 0:00:02.5]} 54. Rxc8 {[%clk 0:01:09.6]} 54... Kf6 {[%clk 0:00:03.1]} 55.
Ke3 {[%clk 0:01:09.4]} 1-0

[Event "Early-Titled-Tuesday-Blitz-May-07-2024"]
[Site "Chess.com"]
[Date "2024.05.07"]
[Round "4"]
[White "Szparu"]
[Black "arenal72"]
[Result "1-0"]
[WhiteElo "2942"]
[BlackElo "2611"]
[TimeControl "180+1"]
[EndTime "8:42:23 PDT"]
[Termination "Szparu won by checkmate"]

1. e4 {[%clk 0:03:00.9]} 1... Nc6 {[%clk 0:02:58.8]} 2. d4 {[%clk 0:03:00.7]}
2... d5 {[%clk 0:02:58]} 3. e5 {[%clk 0:03:01]} 3... Bf5 {[%clk 0:02:57.4]} 4.
c3 {[%clk 0:02:59.9]} 4... Qd7 {[%clk 0:02:57.5]} 5. Ne2 {[%clk 0:02:57.1]} 5...
f6 {[%clk 0:02:55.2]} 6. f4 {[%clk 0:02:51.1]} 6... O-O-O {[%clk 0:02:49.6]} 7.
Nd2 {[%clk 0:02:50.8]} 7... g5 {[%clk 0:02:44.3]} 8. Nf3 {[%clk 0:02:49.4]} 8...
g4 {[%clk 0:02:35.3]} 9. Nh4 {[%clk 0:02:44]} 9... fxe5 {[%clk 0:01:54]} 10.
fxe5 {[%clk 0:02:20.5]} 10... Be4 {[%clk 0:01:26]} 11. Ng3 {[%clk 0:02:20.2]}
11... Bh6 {[%clk 0:01:24.7]} 12. Be2 {[%clk 0:02:15.5]} 12... Bxc1 {[%clk
0:01:16.6]} 13. Bxg4 {[%clk 0:02:15.3]} 13... e6 {[%clk 0:01:15.3]} 14. Rxc1
{[%clk 0:02:15.6]} 14... Qe7 {[%clk 0:00:58.5]} 15. Nf3 {[%clk 0:02:02.9]} 15...
Nh6 {[%clk 0:00:39.8]} 16. Bh3 {[%clk 0:02:03.2]} 16... Rdg8 {[%clk 0:00:37.2]}
17. O-O {[%clk 0:02:00.8]} 17... Nf7 {[%clk 0:00:33.3]} 18. Kh1 {[%clk 0:01:49]}
18... h5 {[%clk 0:00:24.7]} 19. Nd2 {[%clk 0:01:32.1]} 19... Bh7 {[%clk
0:00:17.6]} 20. Ne2 {[%clk 0:01:26.4]} 20... Ng5 {[%clk 0:00:17.4]} 21. Nf4
{[%clk 0:01:27]} 21... Nxh3 {[%clk 0:00:17.3]} 22. Nxh3 {[%clk 0:01:27.9]} 22...
Bf5 {[%clk 0:00:17.4]} 23. Nf4 {[%clk 0:01:27.7]} 23... h4 {[%clk 0:00:17.7]}
24. Qe2 {[%clk 0:01:24]} 24... h3 {[%clk 0:00:16]} 25. g3 {[%clk 0:01:24.3]}
25... Qd7 {[%clk 0:00:14.7]} 26. Rf2 {[%clk 0:01:21.9]} 26... Ne7 {[%clk
0:00:14.7]} 27. Rg1 {[%clk 0:01:19.7]} 27... Qa4 {[%clk 0:00:14.5]} 28. g4
{[%clk 0:01:16.1]} 28... Bh7 {[%clk 0:00:08.4]} 29. Nxe6 {[%clk 0:01:00.5]}
29... Qxa2 {[%clk 0:00:08.3]} 30. Qb5 {[%clk 0:00:28.8]} 30... c6 {[%clk
0:00:04.7]} 31. Qb4 {[%clk 0:00:26.3]} 31... Ng6 {[%clk 0:00:03.6]} 32. Rf7
{[%clk 0:00:21.7]} 32... Qa6 {[%clk 0:00:04.1]} 33. Qd6 {[%clk 0:00:19.2]} 33...
Qb6 {[%clk 0:00:01.6]} 34. Rc7+ {[%clk 0:00:19.4]} 34... Kb8 {[%clk 0:00:02.1]}
35. Rxc6+ {[%clk 0:00:19.2]} 35... Ka8 {[%clk 0:00:03]} 36. Rxb6 {[%clk
0:00:19.5]} 36... axb6 {[%clk 0:00:03.9]} 37. Ra1# {[%clk 0:00:19.3]} 1-0

[Event "Early-Titled-Tuesday-Blitz-May-07-2024"]
[Site "Chess.com"]
[Date "2024.05.07"]
[Round "4"]
[White "SirStrateg"]
[Black "Ruchess27"]
[Result "1-0"]
[WhiteElo "2678"]
[BlackElo "2466"]
[TimeControl "180+1"]
[EndTime "8:42:23 PDT"]
[Termination "SirStrateg won by resignation"]

1. d4 {[%clk 0:02:51.2]} 1... d5 {[%clk 0:02:59.5]} 2. Bf4 {[%clk 0:02:50.6]}
2... e6 {[%clk 0:02:59.4]} 3. e3 {[%clk 0:02:49.7]} 3... Nf6 {[%clk 0:02:57.5]}
4. Nf3 {[%clk 0:02:48.3]} 4... Bd6 {[%clk 0:02:57.5]} 5. Bg3 {[%clk 0:02:48.8]}
5... O-O {[%clk 0:02:56.8]} 6. Nbd2 {[%clk 0:02:49]} 6... c5 {[%clk 0:02:56.6]}
7. c3 {[%clk 0:02:48.3]} 7... Qc7 {[%clk 0:02:43.5]} 8. Bd3 {[%clk 0:02:28.6]}
8... b6 {[%clk 0:02:39.1]} 9. e4 {[%clk 0:02:19.1]} 9... dxe4 {[%clk 0:02:26.9]}
10. Nxe4 {[%clk 0:02:18]} 10... Nxe4 {[%clk 0:02:22.9]} 11. Bxe4 {[%clk
0:02:16.9]} 11... Nc6 {[%clk 0:02:03.3]} 12. dxc5 {[%clk 0:02:14.4]} 12... Bxg3
{[%clk 0:01:55]} 13. hxg3 {[%clk 0:02:14.5]} 13... f5 {[%clk 0:01:53.7]} 14.
Bxc6 {[%clk 0:02:06.8]} 14... Qxc6 {[%clk 0:01:54.6]} 15. Qd6 {[%clk 0:01:58.3]}
15... Qe4+ {[%clk 0:01:48.9]} 16. Kf1 {[%clk 0:01:54.5]} 16... Ba6+ {[%clk
0:01:37.1]} 17. Kg1 {[%clk 0:01:54.5]} 17... Rad8 {[%clk 0:01:30.5]} 18. Qe7
{[%clk 0:01:50]} 18... bxc5 {[%clk 0:01:09.2]} 19. Rh4 {[%clk 0:01:44.4]} 19...
Qd5 {[%clk 0:00:44.3]} 20. Qxa7 {[%clk 0:01:39.3]} 20... Bb7 {[%clk 0:00:37.8]}
21. c4 {[%clk 0:01:35.3]} 21... Qc6 {[%clk 0:00:33.7]} 22. Qa3 {[%clk 0:01:25]}
22... e5 {[%clk 0:00:32.3]} 23. Qe3 {[%clk 0:01:17.2]} 23... e4 {[%clk
0:00:28.2]} 24. Ng5 {[%clk 0:01:01.7]} 24... h6 {[%clk 0:00:18.4]} 25. Nh3
{[%clk 0:00:59.9]} 25... Rd3 {[%clk 0:00:18]} 26. Qe2 {[%clk 0:00:57.5]} 26...
e3 {[%clk 0:00:13.6]} 27. Nf4 {[%clk 0:00:57.4]} 27... exf2+ {[%clk 0:00:05.5]}
28. Kxf2 {[%clk 0:00:51.6]} 28... Rd4 {[%clk 0:00:05.8]} 29. Qe6+ {[%clk
0:00:51]} 29... Qxe6 {[%clk 0:00:04]} 30. Nxe6 {[%clk 0:00:51.9]} 30... Rxh4
{[%clk 0:00:01.7]} 31. gxh4 {[%clk 0:00:51.8]} 31... Re8 {[%clk 0:00:01.5]} 32.
Nxc5 {[%clk 0:00:51.3]} 32... Bc6 {[%clk 0:00:01.9]} 33. b4 {[%clk 0:00:48]}
33... Kf7 {[%clk 0:00:02]} 34. a4 {[%clk 0:00:48]} 34... Rd8 {[%clk 0:00:01.7]}
35. Ra2 {[%clk 0:00:44.8]} 35... Rd4 {[%clk 0:00:01.8]} 36. Rc2 {[%clk
0:00:43.1]} 36... Kf6 {[%clk 0:00:01.8]} 37. b5 {[%clk 0:00:42.1]} 37... Ba8
{[%clk 0:00:01.6]} 38. b6 {[%clk 0:00:34.5]} 38... Rg4 {[%clk 0:00:01.7]} 39. b7
{[%clk 0:00:34.7]} 1-0

[Event "Early-Titled-Tuesday-Blitz-May-07-2024"]
[Site "Chess.com"]
[Date "2024.05.07"]
[Round "4"]
[White "SuanTiltado"]
[Black "Kushch_Nikolai"]
[Result "0-1"]
[WhiteElo "2251"]
[BlackElo "2408"]
[TimeControl "180+1"]
[EndTime "8:42:24 PDT"]
[Termination "Kushch_Nikolai won by resignation"]

1. d4 {[%clk 0:03:00.9]} 1... Nf6 {[%clk 0:02:59.5]} 2. c4 {[%clk 0:03:01.1]}
2... e6 {[%clk 0:02:59.6]} 3. Nf3 {[%clk 0:03:00.7]} 3... b6 {[%clk 0:02:58.9]}
4. g3 {[%clk 0:02:57.8]} 4... Bb7 {[%clk 0:02:58.8]} 5. Bg2 {[%clk 0:02:58.4]}
5... Be7 {[%clk 0:02:59]} 6. O-O {[%clk 0:02:59]} 6... O-O {[%clk 0:02:59.2]} 7.
Nc3 {[%clk 0:02:53.4]} 7... Ne4 {[%clk 0:02:58.8]} 8. Qc2 {[%clk 0:02:51.5]}
8... Nxc3 {[%clk 0:02:58.5]} 9. Qxc3 {[%clk 0:02:51.3]} 9... f5 {[%clk
0:02:58.8]} 10. b3 {[%clk 0:02:48.2]} 10... Bf6 {[%clk 0:02:58.4]} 11. Bb2
{[%clk 0:02:43.3]} 11... d6 {[%clk 0:02:57.3]} 12. Qc2 {[%clk 0:02:36.2]} 12...
Qe7 {[%clk 0:02:53.1]} 13. d5 {[%clk 0:02:34.6]} 13... e5 {[%clk 0:02:50.3]} 14.
Nd2 {[%clk 0:02:04.2]} 14... g6 {[%clk 0:02:43.7]} 15. e4 {[%clk 0:02:03.3]}
15... f4 {[%clk 0:02:32.8]} 16. b4 {[%clk 0:01:55.1]} 16... Nd7 {[%clk
0:02:31.8]} 17. Nb3 {[%clk 0:01:44.9]} 17... Bg7 {[%clk 0:02:27.8]} 18. f3
{[%clk 0:01:38.6]} 18... fxg3 {[%clk 0:02:27]} 19. hxg3 {[%clk 0:01:39.5]} 19...
Nf6 {[%clk 0:02:17.6]} 20. c5 {[%clk 0:01:21.3]} 20... Nh5 {[%clk 0:02:16.8]}
21. Qf2 {[%clk 0:01:16.4]} 21... Bc8 {[%clk 0:02:11.5]} 22. cxd6 {[%clk
0:01:11]} 22... cxd6 {[%clk 0:02:10.9]} 23. Rac1 {[%clk 0:01:11.4]} 23... Qg5
{[%clk 0:02:04.9]} 24. Kh2 {[%clk 0:01:02.3]} 24... Ba6 {[%clk 0:01:56.4]} 25.
Rfe1 {[%clk 0:00:55.7]} 25... Qe7 {[%clk 0:01:43.7]} 26. a4 {[%clk 0:00:50.1]}
26... g5 {[%clk 0:01:42.5]} 27. b5 {[%clk 0:00:45.6]} 27... Bc8 {[%clk
0:01:41.3]} 28. Qc2 {[%clk 0:00:42.4]} 28... g4 {[%clk 0:01:36.7]} 29. fxg4
{[%clk 0:00:31.3]} 29... Bxg4 {[%clk 0:01:35.2]} 30. Qc7 {[%clk 0:00:24.5]}
30... Qg5 {[%clk 0:01:19.3]} 31. Rf1 {[%clk 0:00:18.2]} 31... Be2 {[%clk
0:01:14.7]} 32. Rxf8+ {[%clk 0:00:14.3]} 32... Rxf8 {[%clk 0:01:13.4]} 33. Rc3
{[%clk 0:00:13.9]} 33... Bf1 {[%clk 0:00:47.9]} 34. Bc1 {[%clk 0:00:11.1]} 34...
Qg6 {[%clk 0:00:41.3]} 35. Bf3 {[%clk 0:00:08.8]} 35... Qxg3+ {[%clk 0:00:37.8]}
36. Kh1 {[%clk 0:00:07.7]} 36... Rxf3 {[%clk 0:00:32.3]} 37. Qd8+ {[%clk
0:00:06.3]} 37... Bf8 {[%clk 0:00:29.4]} 38. Qg5+ {[%clk 0:00:05.7]} 38... Qxg5
{[%clk 0:00:28.9]} 39. Bxg5 {[%clk 0:00:05.5]} 39... Rxc3 {[%clk 0:00:28.9]} 0-1

[Event "Early-Titled-Tuesday-Blitz-May-07-2024"]
[Site "Chess.com"]
[Date "2024.05.07"]
[Round "4"]
[White "jlf287"]
[Black "Arteler"]
[Result "1-0"]
[WhiteElo "2527"]
[BlackElo "2337"]
[TimeControl "180+1"]
[EndTime "8:42:25 PDT"]
[Termination "jlf287 won by checkmate"]

1. e4 {[%clk 0:03:00.9]} 1... e5 {[%clk 0:03:00.1]} 2. Nf3 {[%clk 0:03:01.2]}
2... d6 {[%clk 0:03:00.5]} 3. d4 {[%clk 0:03:00.1]} 3... exd4 {[%clk 0:03:01.4]}
4. Nxd4 {[%clk 0:03:00.4]} 4... Nf6 {[%clk 0:03:02]} 5. Nc3 {[%clk 0:03:00.9]}
5... Be7 {[%clk 0:03:02.7]} 6. g3 {[%clk 0:03:01.2]} 6... O-O {[%clk 0:03:03.4]}
7. Bg2 {[%clk 0:03:02]} 7... c6 {[%clk 0:03:04.1]} 8. O-O {[%clk 0:03:02.1]}
8... Re8 {[%clk 0:03:04.8]} 9. h3 {[%clk 0:03:00.9]} 9... Bf8 {[%clk 0:03:05.4]}
10. Re1 {[%clk 0:03:01.5]} 10... Nbd7 {[%clk 0:03:05.7]} 11. b3 {[%clk
0:02:55.6]} 11... Nc5 {[%clk 0:03:00.7]} 12. Bb2 {[%clk 0:02:52.8]} 12... a5
{[%clk 0:02:59.4]} 13. a4 {[%clk 0:02:52.2]} 13... Na6 {[%clk 0:02:38.6]} 14.
Kh2 {[%clk 0:02:43]} 14... Nb4 {[%clk 0:02:38]} 15. f3 {[%clk 0:02:33.7]} 15...
Qc7 {[%clk 0:02:14.7]} 16. f4 {[%clk 0:02:19.7]} 16... Bd7 {[%clk 0:01:54.6]}
17. Qd2 {[%clk 0:02:19.9]} 17... Rad8 {[%clk 0:01:53.9]} 18. Rad1 {[%clk
0:02:20.6]} 18... Bc8 {[%clk 0:01:54.3]} 19. Qf2 {[%clk 0:02:10.9]} 19... Qb6
{[%clk 0:01:50.5]} 20. Rd2 {[%clk 0:01:57.7]} 20... d5 {[%clk 0:01:03.9]} 21. e5
{[%clk 0:01:50.8]} 21... Ne4 {[%clk 0:00:59.3]} 22. Nxe4 {[%clk 0:01:49.6]}
22... dxe4 {[%clk 0:01:00.2]} 23. Bxe4 {[%clk 0:01:37.8]} 23... Bc5 {[%clk
0:00:59.7]} 24. Red1 {[%clk 0:01:30.2]} 24... f6 {[%clk 0:00:45]} 25. Qf3 {[%clk
0:01:15.4]} 25... fxe5 {[%clk 0:00:41.4]} 26. fxe5 {[%clk 0:01:14.4]} 26... Bxd4
{[%clk 0:00:20.9]} 27. Bxd4 {[%clk 0:01:13.7]} 27... c5 {[%clk 0:00:21.4]} 28.
Be3 {[%clk 0:01:01.6]} 28... Rxd2+ {[%clk 0:00:20.9]} 29. Rxd2 {[%clk
0:01:02.2]} 29... Be6 {[%clk 0:00:18.9]} 30. Qh5 {[%clk 0:00:57]} 30... g6
{[%clk 0:00:16.8]} 31. Bxg6 {[%clk 0:00:54.1]} 31... hxg6 {[%clk 0:00:17.7]} 32.
Qxg6+ {[%clk 0:00:54.4]} 32... Kh8 {[%clk 0:00:17.5]} 33. Qxe8+ {[%clk
0:00:54.1]} 33... Kg7 {[%clk 0:00:14.4]} 34. Qe7+ {[%clk 0:00:51.7]} 34... Kg6
{[%clk 0:00:13.4]} 35. Qf6+ {[%clk 0:00:50.2]} 35... Kh7 {[%clk 0:00:13.1]} 36.
Rd6 {[%clk 0:00:46.3]} 36... Nd5 {[%clk 0:00:02]} 37. Qh6+ {[%clk 0:00:41.2]}
37... Kg8 {[%clk 0:00:02]} 38. Rxb6 {[%clk 0:00:39]} 38... Nxe3 {[%clk
0:00:02.9]} 39. Rxe6 {[%clk 0:00:34.6]} 39... Nf5 {[%clk 0:00:02.8]} 40. Qg6+
{[%clk 0:00:33.1]} 40... Ng7 {[%clk 0:00:03.7]} 41. Re8# {[%clk 0:00:32.4]} 1-0

[Event "Early-Titled-Tuesday-Blitz-May-07-2024"]
[Site "Chess.com"]
[Date "2024.05.07"]
[Round "4"]
[White "cycygogne"]
[Black "stepanosinovsky"]
[Result "0-1"]
[WhiteElo "2161"]
[BlackElo "2327"]
[TimeControl "180+1"]
[EndTime "8:42:26 PDT"]
[Termination "stepanosinovsky won by resignation"]

1. e4 {[%clk 0:03:00.9]} 1... e6 {[%clk 0:02:59.4]} 2. d4 {[%clk 0:03:00.6]}
2... d5 {[%clk 0:02:59]} 3. e5 {[%clk 0:03:00.9]} 3... Ne7 {[%clk 0:02:58.8]} 4.
c3 {[%clk 0:02:58.6]} 4... Nbc6 {[%clk 0:02:59.7]} 5. f4 {[%clk 0:02:57.7]} 5...
b6 {[%clk 0:03:00.6]} 6. Nf3 {[%clk 0:02:56.8]} 6... Bb7 {[%clk 0:03:01.2]} 7.
Bd3 {[%clk 0:02:56.8]} 7... Qd7 {[%clk 0:03:01.7]} 8. O-O {[%clk 0:02:52.5]}
8... O-O-O {[%clk 0:03:02]} 9. Qe2 {[%clk 0:02:48.7]} 9... Kb8 {[%clk
0:03:00.9]} 10. b4 {[%clk 0:02:48.2]} 10... h5 {[%clk 0:02:47.9]} 11. a4 {[%clk
0:02:47.5]} 11... Nc8 {[%clk 0:02:26.9]} 12. a5 {[%clk 0:02:45.9]} 12... N6e7
{[%clk 0:02:25]} 13. axb6 {[%clk 0:02:43.9]} 13... cxb6 {[%clk 0:02:24.8]} 14.
Ba6 {[%clk 0:02:34.3]} 14... Bxa6 {[%clk 0:02:18]} 15. Qxa6 {[%clk 0:02:35.2]}
15... Nf5 {[%clk 0:02:11]} 16. Na3 {[%clk 0:02:35.1]} 16... Qc6 {[%clk
0:01:56.3]} 17. Nb5 {[%clk 0:02:29.3]} 17... Rd7 {[%clk 0:01:55.6]} 18. Bd2
{[%clk 0:02:16.3]} 18... Be7 {[%clk 0:01:40.3]} 19. Ra2 {[%clk 0:02:11.6]} 19...
Rhd8 {[%clk 0:01:19.4]} 20. Rfa1 {[%clk 0:02:11.2]} 20... Rb7 {[%clk 0:01:18.2]}
21. Ne1 {[%clk 0:02:10.3]} 21... Rdd7 {[%clk 0:01:13.2]} 22. Nd3 {[%clk
0:02:10.4]} 22... Qc4 {[%clk 0:01:13.3]} 23. Nf2 {[%clk 0:01:16]} 23... Qe2
{[%clk 0:01:09.6]} 24. Be1 {[%clk 0:01:13.4]} 24... Qe3 {[%clk 0:01:00.8]} 25.
Qa4 {[%clk 0:00:59.3]} 25... Qxf4 {[%clk 0:00:55.3]} 26. Qd1 {[%clk 0:00:57.9]}
26... Qh6 {[%clk 0:00:43.8]} 27. Ra6 {[%clk 0:00:44.3]} 27... g5 {[%clk
0:00:42.2]} 28. Nd3 {[%clk 0:00:33.6]} 28... g4 {[%clk 0:00:40]} 29. Nc5 {[%clk
0:00:33.7]} 29... bxc5 {[%clk 0:00:37.4]} 30. bxc5 {[%clk 0:00:34.6]} 30... Rxb5
{[%clk 0:00:33.4]} 31. c4 {[%clk 0:00:32.2]} 31... dxc4 {[%clk 0:00:31.8]} 32.
Qa4 {[%clk 0:00:32.2]} 32... Qe3+ {[%clk 0:00:27.9]} 33. Kh1 {[%clk 0:00:31.5]}
33... Qb3 {[%clk 0:00:28.8]} 34. c6 {[%clk 0:00:26.5]} 34... Qxa4 {[%clk
0:00:24.6]} 35. R6xa4 {[%clk 0:00:27.4]} 35... Rc7 {[%clk 0:00:23.4]} 36. Rxc4
{[%clk 0:00:27.7]} 36... Ne3 {[%clk 0:00:22.6]} 37. Rc3 {[%clk 0:00:25.7]} 37...
Nd5 {[%clk 0:00:22]} 38. Rc4 {[%clk 0:00:23.9]} 38... Rb6 {[%clk 0:00:21.9]} 39.
Ba5 {[%clk 0:00:22.8]} 39... Rcxc6 {[%clk 0:00:22]} 40. Rca4 {[%clk 0:00:17.5]}
40... Rb7 {[%clk 0:00:21.5]} 41. Be1 {[%clk 0:00:16.9]} 41... Rcb6 {[%clk
0:00:20.5]} 0-1

[Event "Early-Titled-Tuesday-Blitz-May-07-2024"]
[Site "Chess.com"]
[Date "2024.05.07"]
[Round "4"]
[White "Boundless_Strike"]
[Black "Witik"]
[Result "0-1"]
[WhiteElo "2656"]
[BlackElo "2870"]
[TimeControl "180+1"]
[EndTime "8:42:28 PDT"]
[Termination "Witik won by checkmate"]

1. d4 {[%clk 0:03:00.9]} 1... Nf6 {[%clk 0:02:57.5]} 2. f3 {[%clk 0:03:01.2]}
2... d6 {[%clk 0:02:53.1]} 3. e4 {[%clk 0:03:00.8]} 3... e5 {[%clk 0:02:53.1]}
4. Nc3 {[%clk 0:02:55]} 4... exd4 {[%clk 0:02:41.4]} 5. Qxd4 {[%clk 0:02:54.6]}
5... Nc6 {[%clk 0:02:41.8]} 6. Bb5 {[%clk 0:02:54.4]} 6... Be7 {[%clk
0:02:40.8]} 7. b3 {[%clk 0:02:43.8]} 7... O-O {[%clk 0:02:39.6]} 8. Bxc6 {[%clk
0:02:43.8]} 8... bxc6 {[%clk 0:02:40.5]} 9. Bb2 {[%clk 0:02:44.4]} 9... d5
{[%clk 0:02:13]} 10. O-O-O {[%clk 0:02:09]} 10... c5 {[%clk 0:02:08.6]} 11. Qe5
{[%clk 0:01:32.1]} 11... d4 {[%clk 0:02:05.5]} 12. Na4 {[%clk 0:01:29.6]} 12...
Nd7 {[%clk 0:01:38.5]} 13. Qg3 {[%clk 0:00:52.6]} 13... Nb6 {[%clk 0:01:33.1]}
14. Nxb6 {[%clk 0:00:47.6]} 14... axb6 {[%clk 0:01:34]} 15. Kb1 {[%clk
0:00:39.6]} 15... Qe8 {[%clk 0:00:57]} 16. Ne2 {[%clk 0:00:35.6]} 16... Qb5
{[%clk 0:00:56.9]} 17. Nc1 {[%clk 0:00:35.9]} 17... Be6 {[%clk 0:00:47.4]} 18.
Qxc7 {[%clk 0:00:28.8]} 18... Rfe8 {[%clk 0:00:43.7]} 19. f4 {[%clk 0:00:26.2]}
19... Rac8 {[%clk 0:00:26.6]} 20. Qe5 {[%clk 0:00:26.1]} 20... Bf8 {[%clk
0:00:19.8]} 21. f5 {[%clk 0:00:19.4]} 21... Bxb3 {[%clk 0:00:18.8]} 22. Qg3
{[%clk 0:00:13.9]} 22... Ba4 {[%clk 0:00:15.7]} 23. Ka1 {[%clk 0:00:09]} 23...
Rxe4 {[%clk 0:00:15.5]} 24. Rhe1 {[%clk 0:00:07.6]} 24... Bxc2 {[%clk
0:00:14.3]} 25. Rxe4 {[%clk 0:00:07.5]} 25... Bxe4 {[%clk 0:00:14.8]} 26. f6
{[%clk 0:00:06.6]} 26... Bg6 {[%clk 0:00:13.7]} 27. fxg7 {[%clk 0:00:03.7]}
27... Bxg7 {[%clk 0:00:14.1]} 28. Re1 {[%clk 0:00:04.3]} 28... c4 {[%clk
0:00:13]} 29. h4 {[%clk 0:00:03]} 29... c3 {[%clk 0:00:12.6]} 30. Nb3 {[%clk
0:00:02.5]} 30... cxb2+ {[%clk 0:00:12.5]} 31. Kxb2 {[%clk 0:00:03.1]} 31... d3+
{[%clk 0:00:13.1]} 32. Ka3 {[%clk 0:00:02.4]} 32... Ra8+ {[%clk 0:00:12.8]} 33.
Na5 {[%clk 0:00:01.6]} 33... Rxa5# {[%clk 0:00:12.9]} 0-1